fUST/lending_fUST_20251029
["ID","MTS","AMOUNT","RATE_DAILY","PERIOD"]
[392575231,1761683442557,-366.74921927,0.00022465,2]
[392575232,1761683442566,-500.0,0.00022465,2]
[392575233,1761683442575,-1313.33,0.00022465,2]
[392575234,1761683442585,-500.0,0.00022465,2]
[392575235,1761683442594,-788.15,0.00022465,2]
[392575236,1761683442604,-500.0,0.00022465,2]
[392575237,1761683442613,-500.0,0.00022465,2]
[392575238,1761683442622,-265.9842461,0.00022465,2]
[392575239,1761683442633,-1017.17,0.00022465,2]
[392575240,1761683442642,-500.0,0.00022465,2]
[392575241,1761683442651,-1953.63,0.00022465,2]
[392575242,1761683442661,-500.0,0.00022465,2]
[392575243,1761683442670,-619.39,0.00022465,2]
[392575244,1761683442679,-1401.31,0.00022465,2]
[392575245,1761683442688,-914.04,0.00022465,2]
[392575246,1761683442698,-500.0,0.00022465,2]
[392575247,1761683442708,-4955.02,0.00022465,2]
[392575248,1761683442717,-500.0,0.00022465,2]
[392575249,1761683442727,-3161.52,0.00022465,2]
[392575250,1761683442736,-853.53,0.00022465,2]
[392575251,1761683442745,-588.23,0.00022465,2]
[392575252,1761683442755,-500.0,0.00022465,2]
[392575253,1761683442764,-500.0,0.00022465,2]
[392575254,1761683442773,-500.0,0.00022465,2]
[392575255,1761683442782,-500.0,0.00022465,2]
[392575256,1761683442792,-1189.17,0.00022465,2]
[392575257,1761683442801,-500.0,0.00022465,2]
[392575258,1761683442810,-500.0,0.00022465,2]
[392575259,1761683442819,-500.0,0.00022465,2]
[392575260,1761683442828,-1049.28,0.00022465,2]
[392575261,1761683442838,-500.0,0.00022465,2]
[392575262,1761683442847,-988.91,0.00022465,2]
[392575263,1761683442856,-500.0,0.00022465,2]
[392575264,1761683442866,-739.45,0.00022465,2]
[392575265,1761683442876,-500.0,0.00022465,2]
[392575266,1761683442885,-500.0,0.00022465,2]
[392575267,1761683442894,-500.0,0.00022465,2]
[392575268,1761683442904,-500.0,0.00022465,2]
[392575269,1761683442913,-500.0,0.00022465,2]
[392575270,1761683442922,-1582.68,0.00022465,2]
[392575271,1761683442933,-500.0,0.00022465,2]
[392575272,1761683442942,-500.0,0.00022465,2]
[392575273,1761683442951,-516.25789517,0.00022465,2]
[392575274,1761683442961,-798.02,0.00022465,2]
[392575275,1761683442970,-1280.95,0.00022465,2]
[392575276,1761683442979,-518.96,0.00022465,2]
[392575277,1761683442988,-500.0,0.00022465,2]
[392575278,1761683442997,-500.0,0.00022465,2]
[392575279,1761683443006,-1007.42,0.00022465,2]
[392575280,1761683443016,-1719.48,0.00022465,2]
[392575282,1761683443025,-571.79,0.00022465,2]
[392575283,1761683443034,-512.93,0.00022465,2]
[392575285,1761683443044,-500.0,0.00022465,2]
[392575287,1761683443053,-500.0,0.00022465,2]
[392575288,1761683443063,-500.0,0.00022465,2]
[392575290,1761683443073,-651.8,0.00022465,2]
[392575292,1761683443083,-857.14,0.00022465,2]
[392575293,1761683443093,-500.0,0.00022465,2]
[392575294,1761683443103,-928.01,0.00022465,2]
[392575295,1761683443113,-702.37,0.00022465,2]
[392575296,1761683443124,-500.0,0.00022465,2]
[392575297,1761683443135,-500.0,0.00022465,2]
[392575298,1761683443145,-500.0,0.00022465,2]
[392575299,1761683443155,-500.0,0.00022465,2]
[392575300,1761683443165,-1229.29,0.00022465,2]
[392575301,1761683443174,-1329.21,0.00022465,2]
[392575302,1761683443184,-1270.87,0.00022465,2]
[392575303,1761683443197,-1765.66,0.00022465,2]
[392575304,1761683443206,-500.0,0.00022465,2]
[392575305,1761683443215,-1227.56,0.00022465,2]
[392575306,1761683443224,-500.0,0.00022465,2]
[392575307,1761683443235,-500.0,0.00022465,2]
[392575308,1761683443245,-1480.79,0.00022465,2]
[392575309,1761683443254,-500.0,0.00022465,2]
[392575310,1761683443263,-500.0,0.00022465,2]
[392575311,1761683443274,-500.0,0.00022465,2]
[392575312,1761683443283,-2708.93,0.00022465,2]
[392575313,1761683443292,-500.0,0.00022465,2]
[392575314,1761683443301,-500.0,0.00022465,2]
[392575315,1761683443309,-2012.31,0.00022465,2]
[392575316,1761683443319,-597.99,0.00022465,2]
[392575317,1761683443327,-500.0,0.00022465,2]
[392575318,1761683443336,-1107.93,0.00022465,2]
[392575319,1761683443345,-892.44,0.00022465,2]
[392575320,1761683443356,-500.0,0.00022465,2]
[392575321,1761683443365,-500.0,0.00022465,2]
[392575322,1761683443376,-741.32,0.00022465,2]
[392575323,1761683443386,-615.73,0.00022465,2]
[392575324,1761683443395,-684.45,0.00022465,2]
[392575325,1761683443404,-500.0,0.00022465,2]
[392575326,1761683443413,-160.0,0.000225,2]
[392575327,1761683443423,-1390.29642326,0.00022502,2]
[392575328,1761683443433,-182.50709143,0.0002253,2]
[392575329,1761683443442,-182.93443368,0.00022585,7]
[392575330,1761683443451,-153.357761,0.000226,10]
[392575331,1761683443460,-823.0,0.00022606,2]
[392575332,1761683443469,-1067.28771528,0.00022668,2]
[392575333,1761683443479,-150.0,0.000227,2]
[392575334,1761683443489,-150.0,0.000227,10]
[392575335,1761683443498,-1000.0,0.00022721,2]
[392575336,1761683443507,-1000.0,0.00022721,2]
[392575337,1761683443517,-1000.0,0.00022721,2]
[392575338,1761683443526,-1000.0,0.00022721,2]
[392575339,1761683443535,-1000.0,0.00022721,2]
[392575340,1761683443544,-1000.0,0.00022721,2]
[392575341,1761683443553,-1000.0,0.00022721,2]
[392575342,1761683443561,-1000.0,0.00022721,2]
[392575343,1761683443570,-1000.0,0.00022721,2]
[392575344,1761683443579,-500.0,0.00022739,2]
[392575345,1761683443588,-500.0,0.00022739,2]
[392575346,1761683443597,-500.0,0.00022739,2]
[392575347,1761683443606,-500.0,0.00022739,2]
[392575348,1761683443615,-500.0,0.00022739,2]
[392575349,1761683443625,-500.0,0.00022739,2]
[392575350,1761683443635,-500.0,0.00022739,2]
[392575351,1761683443644,-500.0,0.00022739,2]
[392575352,1761683443653,-565.54,0.00022739,2]
[392575353,1761683443662,-500.0,0.00022739,2]
[392575354,1761683443671,-500.0,0.00022739,2]
[392575355,1761683443681,-500.0,0.00022739,2]
[392575356,1761683443690,-509.83,0.00022739,2]
[392575357,1761683443699,-500.0,0.00022739,2]
[392575358,1761683443708,-500.0,0.00022739,2]
[392575359,1761683443717,-500.0,0.00022739,2]
[392575360,1761683443728,-753.62,0.00022739,2]
[392575361,1761683443738,-500.0,0.00022739,2]
[392575362,1761683443747,-500.0,0.00022739,2]
[392575363,1761683443759,-500.0,0.00022739,2]
[392575364,1761683443768,-528.67,0.00022739,2]
[392575365,1761683443777,-580.11,0.00022739,2]
[392575366,1761683443786,-500.34,0.00022739,2]
[392575367,1761683443795,-500.0,0.00022739,2]
[392575368,1761683443804,-500.0,0.00022739,2]
[392575369,1761683443813,-500.0,0.00022739,2]
[392575370,1761683443822,-500.0,0.00022739,2]
[392575371,1761683443832,-500.0,0.00022739,2]
[392575372,1761683443841,-500.0,0.00022739,2]
[392575373,1761683443851,-501.59,0.00022739,2]
[392575374,1761683443860,-500.0,0.00022739,2]
[392575375,1761683443869,-1326.84,0.00022739,2]
[392575376,1761683443880,-500.0,0.00022739,2]
[392575377,1761683443889,-968.0,0.00022739,2]
[392575378,1761683443897,-500.0,0.00022739,2]
[392575379,1761683443907,-500.0,0.00022739,2]
[392575380,1761683443915,-500.0,0.00022739,2]
[392575381,1761683443924,-1342.01,0.00022739,2]
[392575382,1761683443933,-500.0,0.00022739,2]
[392575383,1761683443943,-779.85,0.00022739,2]
[392575384,1761683443952,-500.0,0.00022739,2]
[392575385,1761683443963,-500.0,0.00022739,2]
[392575386,1761683443972,-500.0,0.00022739,2]
[392575387,1761683443982,-500.0,0.00022739,2]
[392575388,1761683443991,-500.0,0.00022739,2]
[392575389,1761683444000,-500.0,0.00022739,2]
[392575390,1761683444009,-644.3811408,0.00022739,2]
[392575391,1761683444018,-500.0,0.00022739,2]
[392575392,1761683444028,-500.0,0.00022739,2]
[392575393,1761683444037,-500.0,0.00022739,2]
[392575394,1761683444046,-500.0,0.00022739,2]
[392575395,1761683444055,-596.50751565,0.00022739,2]
[392575396,1761683444064,-500.0,0.00022739,2]
[392575397,1761683444073,-500.0,0.00022739,2]
[392575398,1761683444082,-500.0,0.00022739,2]
[392575399,1761683444092,-500.0,0.00022739,2]
[392575400,1761683444101,-734.07098553,0.00022739,2]
[392575401,1761683444111,-2933.34765818,0.00022739,2]
[392575402,1761683444120,-1793.94,0.00022739,2]
[392575403,1761683444131,-500.0,0.00022739,2]
[392575404,1761683444140,-500.0,0.00022739,2]
[392575405,1761683444149,-500.0,0.00022739,2]
[392575406,1761683444159,-500.0,0.00022739,2]
[392575407,1761683444168,-208.39264373,0.00022739,2]
[392575408,1761683444178,-3244.83,0.00022739,2]
[392575409,1761683444188,-500.0,0.00022739,2]
[392575410,1761683444206,-390.72113272,0.00022739,2]
[392575411,1761683444216,-500.0,0.00022739,2]
[392575412,1761683444225,-500.0,0.00022739,2]
[392575413,1761683444235,-500.0,0.00022739,2]
[392575415,1761683444244,-500.0,0.00022739,2]
[392575417,1761683444253,-500.0,0.00022739,2]
[392575419,1761683444262,-650.66,0.00022739,2]
[392575421,1761683444272,-697.01,0.00022739,2]
[392575423,1761683444281,-500.0,0.00022739,2]
[392575425,1761683444290,-635.96,0.00022739,2]
[392575426,1761683444298,-500.0,0.00022739,2]
[392575428,1761683444308,-720.61,0.00022739,2]
[392575429,1761683444317,-500.0,0.00022739,2]
[392575430,1761683444326,-500.0,0.00022739,2]
[392575431,1761683444334,-500.0,0.00022739,2]
[392575432,1761683444343,-500.0,0.00022739,2]
[392575433,1761683444353,-500.0,0.00022739,2]
[392575434,1761683444363,-500.0,0.00022739,2]
[392575435,1761683444372,-500.0,0.00022739,2]
[392575436,1761683444385,-653.4,0.00022739,2]
[392575437,1761683444394,-500.0,0.00022739,2]
[392575438,1761683444404,-500.0,0.00022739,2]
[392575439,1761683444413,-500.0,0.00022739,2]
[392575440,1761683444422,-500.0,0.00022739,2]
[392575442,1761683444432,-500.0,0.00022739,2]
[392575444,1761683444441,-500.0,0.00022739,2]
[392575445,1761683444450,-500.0,0.00022739,2]
[392575446,1761683444459,-500.0,0.00022739,2]
[392575448,1761683444468,-540.28,0.00022739,2]
[392575450,1761683444477,-607.3983802,0.00022739,2]
[392575451,1761683444486,-525.51,0.00022739,2]
[392575452,1761683444495,-500.0,0.00022739,2]
[392575453,1761683444504,-500.0,0.00022739,2]
[392575454,1761683444513,-773.92,0.00022739,2]
[392575455,1761683444522,-572.9,0.00022739,2]
[392575457,1761683444531,-1253.71,0.00022739,2]
[392575458,1761683444540,-500.0,0.00022739,2]
[392575459,1761683444549,-532.5,0.00022739,2]
[392575460,1761683444558,-175.79324248,0.00022739,2]
[392575461,1761683444567,-808.3,0.00022739,2]
[392575462,1761683444577,-500.0,0.00022739,2]
[392575463,1761683444587,-500.0,0.00022739,2]
[392575464,1761683444597,-500.0,0.00022739,2]
[392575465,1761683444606,-719.47,0.00022739,2]
[392575466,1761683444615,-560.3,0.00022739,2]
[392575467,1761683444625,-500.0,0.00022739,2]
[392575468,1761683444634,-500.0,0.00022739,2]
[392575469,1761683444644,-500.0,0.00022739,2]
[392575470,1761683444653,-600.53255659,0.00022739,2]
[392575471,1761683444662,-500.0,0.00022739,2]
[392575472,1761683444671,-500.0,0.00022739,2]
[392575473,1761683444681,-500.0,0.00022739,2]
[392575474,1761683444691,-500.0,0.00022739,2]
[392575476,1761683444700,-743.36,0.00022739,2]
[392575477,1761683444710,-500.0,0.00022739,2]
[392575479,1761683444720,-500.0,0.00022739,2]
[392575481,1761683444729,-500.0,0.00022739,2]
[392575483,1761683444738,-500.0,0.00022739,2]
[392575484,1761683444748,-500.0,0.00022739,2]
[392575485,1761683444757,-565.7,0.00022739,2]
[392575486,1761683444766,-500.0,0.00022739,2]
[392575487,1761683444775,-527.51,0.00022739,2]
[392575488,1761683444784,-543.53,0.00022739,2]
[392575489,1761683444793,-576.77913772,0.00022739,2]
[392575490,1761683444802,-500.0,0.00022739,2]
[392575491,1761683444812,-588.6,0.00022739,2]
[392575492,1761683444821,-971.93,0.00022739,2]
[392575493,1761683444830,-500.0,0.00022739,2]
[392575494,1761683444840,-500.0,0.00022739,2]
[392575495,1761683444849,-1057.95,0.00022739,2]
[392575496,1761683444861,-500.0,0.00022739,2]
[392575497,1761683444870,-500.0,0.00022739,2]
[392575498,1761683444881,-500.0,0.00022739,2]
[392575499,1761683444891,-500.0,0.00022739,2]
[392575500,1761683444901,-563.61,0.00022739,2]
[392575501,1761683444912,-217.76846165,0.00022739,2]
[392575502,1761683444921,-500.0,0.00022739,2]
[392575503,1761683444931,-500.0,0.00022739,2]
[392575504,1761683444940,-792.19,0.00022739,2]
[392575505,1761683444949,-500.0,0.00022739,2]
[392575506,1761683444959,-500.0,0.00022739,2]
[392575507,1761683444969,-500.0,0.00022739,2]
[392575508,1761683444979,-500.0,0.00022739,2]
[392575509,1761683444988,-597.93,0.00022739,2]
[392575510,1761683444998,-669.44,0.00022739,2]
[392575511,1761683445007,-686.73,0.00022739,2]
[392575512,1761683445018,-500.0,0.00022739,2]
[392575513,1761683445027,-500.0,0.00022739,2]
[392575514,1761683445037,-864.35,0.00022739,2]
[392575515,1761683445047,-890.64,0.00022739,2]
[392575516,1761683445056,-529.67,0.00022739,2]
[392575517,1761683445066,-895.69,0.00022739,2]
[392575518,1761683445076,-500.0,0.00022739,2]
[392575519,1761683445086,-500.0,0.00022739,2]
[392575520,1761683445095,-1194.82,0.00022739,2]
[392575521,1761683445105,-500.0,0.00022739,2]
[392575522,1761683445115,-500.0,0.00022739,2]
[392575523,1761683445124,-500.0,0.00022739,2]
[392575524,1761683445134,-500.0,0.00022739,2]
[392575525,1761683445144,-500.0,0.00022739,2]
[392575526,1761683445154,-500.0,0.00022739,2]
[392575527,1761683445163,-500.0,0.00022739,2]
[392575528,1761683445173,-500.0,0.00022739,2]
[392575529,1761683445183,-500.0,0.00022739,2]
[392575530,1761683445193,-1339.48,0.00022739,2]
[392575531,1761683445206,-639.95,0.00022739,2]
[392575532,1761683445215,-500.0,0.00022739,2]
[392575533,1761683445225,-500.0,0.00022739,2]
[392575534,1761683445235,-500.0,0.00022739,2]
[392575535,1761683445246,-714.7,0.00022739,2]
[392575536,1761683445257,-500.0,0.00022739,2]
[392575537,1761683445267,-500.0,0.00022739,2]
[392575538,1761683445277,-500.0,0.00022739,2]
[392575539,1761683445286,-796.88,0.00022739,2]
[392575540,1761683445296,-500.0,0.00022739,2]
[392575541,1761683445305,-500.0,0.00022739,2]
[392575542,1761683445314,-1138.98,0.00022739,2]
[392575543,1761683445323,-500.0,0.00022739,2]
[392575544,1761683445333,-1159.26,0.00022739,2]
[392575545,1761683445343,-500.0,0.00022739,2]
[392575546,1761683445352,-500.0,0.00022739,2]
[392575547,1761683445361,-500.0,0.00022739,2]
[392575548,1761683445371,-500.0,0.00022739,2]
[392575549,1761683445383,-500.0,0.00022739,2]
[392575550,1761683445392,-801.75,0.00022739,2]
[392575551,1761683445402,-500.0,0.00022739,2]
[392575552,1761683445411,-12590.38,0.00022739,2]
[392575553,1761683445421,-558.77,0.00022739,2]
[392575554,1761683445430,-500.0,0.00022739,2]
[392575555,1761683445440,-504.15,0.00022739,2]
[392575556,1761683445451,-500.0,0.00022739,2]
[392575557,1761683445462,-1399.83,0.00022739,2]
[392575558,1761683445472,-500.0,0.00022739,2]
[392575559,1761683445482,-928.2,0.00022739,2]
[392575560,1761683445492,-500.0,0.00022739,2]
[392575561,1761683445502,-1082.95,0.00022739,2]
[392575562,1761683445511,-832.89,0.00022739,2]
[392575563,1761683445520,-500.0,0.00022739,2]
[392575564,1761683445531,-500.0,0.00022739,2]
[392575565,1761683445541,-629.53,0.00022739,2]
[392575566,1761683445551,-500.0,0.00022739,2]
[392575567,1761683445561,-500.0,0.00022739,2]
[392575568,1761683445570,-644.83,0.00022739,2]
[392575569,1761683445581,-500.0,0.00022739,2]
[392575570,1761683445590,-1526.33,0.00022739,2]
[392575571,1761683445600,-560.48,0.00022739,2]
[392575572,1761683445609,-521.95,0.00022739,2]
[392575573,1761683445619,-568.75,0.00022739,2]
[392575574,1761683445629,-515.0,0.00022739,2]
[392575575,1761683445639,-682.64,0.00022739,2]
[392575576,1761683445648,-1171.73,0.00022739,2]
[392575577,1761683445657,-903.31,0.00022739,2]
[392575578,1761683445666,-500.0,0.00022739,2]
[392575579,1761683445675,-475.40764716,0.00022739,2]
[392575580,1761683445685,-1102.37,0.00022739,2]
[392575581,1761683445694,-500.0,0.00022739,2]
[392575582,1761683445704,-500.0,0.00022739,2]
[392575583,1761683445713,-500.0,0.00022739,2]
[392575584,1761683445723,-1276.07,0.00022739,2]
[392575585,1761683445732,-1033.88,0.00022739,2]
[392575586,1761683445741,-2236.95,0.00022739,2]
[392575587,1761683445751,-500.0,0.00022739,2]
[392575588,1761683445760,-830.69,0.00022739,2]
[392575589,1761683445770,-500.0,0.00022739,2]
[392575590,1761683445779,-646.94,0.00022739,2]
[392575591,1761683445788,-500.0,0.00022739,2]
[392575592,1761683445797,-500.0,0.00022739,2]
[392575593,1761683445807,-500.0,0.00022739,2]
[392575594,1761683445816,-1313.33,0.00022739,2]
[392575595,1761683445826,-500.0,0.00022739,2]
[392575596,1761683445839,-788.15,0.00022739,2]
[392575597,1761683445849,-500.0,0.00022739,2]
[392575598,1761683445859,-500.0,0.00022739,2]
[392575599,1761683445869,-1017.17,0.00022739,2]
[392575600,1761683445879,-500.0,0.00022739,2]
[392575601,1761683445889,-1953.63,0.00022739,2]
[392575602,1761683445899,-500.0,0.00022739,2]
[392575603,1761683445909,-619.39,0.00022739,2]
[392575604,1761683445918,-1401.31,0.00022739,2]
[392575605,1761683445929,-914.04,0.00022739,2]
[392575606,1761683445938,-500.0,0.00022739,2]
[392575607,1761683445948,-4955.02,0.00022739,2]
[392575608,1761683445957,-500.0,0.00022739,2]
[392575609,1761683445967,-3161.52,0.00022739,2]
[392575610,1761683445977,-853.53,0.00022739,2]
[392575611,1761683445986,-588.23,0.00022739,2]
[392575612,1761683445996,-500.0,0.00022739,2]
[392575613,1761683446006,-500.0,0.00022739,2]
[392575615,1761683446016,-500.0,0.00022739,2]
[392575617,1761683446025,-500.0,0.00022739,2]
[392575618,1761683446035,-1189.17,0.00022739,2]
[392575619,1761683446044,-500.0,0.00022739,2]
[392575620,1761683446054,-500.0,0.00022739,2]
[392575621,1761683446064,-500.0,0.00022739,2]
[392575624,1761683446073,-1049.28,0.00022739,2]
[392575625,1761683446083,-500.0,0.00022739,2]
[392575626,1761683446093,-988.91,0.00022739,2]
[392575627,1761683446102,-500.0,0.00022739,2]
[392575628,1761683446112,-739.45,0.00022739,2]
[392575630,1761683446122,-500.0,0.00022739,2]
[392575632,1761683446135,-500.0,0.00022739,2]
[392575634,1761683446145,-500.0,0.00022739,2]
[392575636,1761683446155,-500.0,0.00022739,2]
[392575638,1761683446165,-500.0,0.00022739,2]
[392575640,1761683446174,-500.0,0.00022739,2]
[392575642,1761683446184,-500.0,0.00022739,2]
[392575644,1761683446198,-798.02,0.00022739,2]
[392575646,1761683446208,-1280.95,0.00022739,2]
[392575648,1761683446217,-518.96,0.00022739,2]
[392575650,1761683446227,-500.0,0.00022739,2]
[392575652,1761683446238,-500.0,0.00022739,2]
[392575654,1761683446248,-1007.42,0.00022739,2]
[392575655,1761683446257,-1719.48,0.00022739,2]
[392575656,1761683446269,-571.79,0.00022739,2]
[392575657,1761683446279,-512.93,0.00022739,2]
[392575658,1761683446289,-500.0,0.00022739,2]
[392575660,1761683446299,-500.0,0.00022739,2]
[392575662,1761683446308,-500.0,0.00022739,2]
[392575663,1761683446319,-651.8,0.00022739,2]
[392575664,1761683446328,-857.14,0.00022739,2]
[392575665,1761683446338,-500.0,0.00022739,2]
[392575667,1761683446348,-928.01,0.00022739,2]
[392575668,1761683446358,-702.37,0.00022739,2]
[392575669,1761683446367,-500.0,0.00022739,2]
[392575670,1761683446380,-500.0,0.00022739,2]
[392575671,1761683446390,-500.0,0.00022739,2]
[392575672,1761683446400,-500.0,0.00022739,2]
[392575673,1761683446409,-1229.29,0.00022739,2]
[392575674,1761683446419,-1329.21,0.00022739,2]
[392575675,1761683446429,-1270.87,0.00022739,2]
[392575676,1761683446439,-1765.66,0.00022739,2]
[392575677,1761683446449,-500.0,0.00022739,2]
[392575678,1761683446458,-1227.56,0.00022739,2]
[392575680,1761683446468,-500.0,0.00022739,2]
[392575682,1761683446478,-500.0,0.00022739,2]
[392575684,1761683446487,-1480.79,0.00022739,2]
[392575685,1761683446497,-500.0,0.00022739,2]
[392575686,1761683446506,-260.68108487,0.00022739,2]
[392575688,1761683446516,-500.0,0.00022739,2]
[392575689,1761683446525,-2708.93,0.00022739,2]
[392575690,1761683446534,-500.0,0.00022739,2]
[392575691,1761683446543,-500.0,0.00022739,2]
[392575692,1761683446552,-2012.31,0.00022739,2]
[392575693,1761683446562,-597.99,0.00022739,2]
[392575694,1761683446571,-500.0,0.00022739,2]
[392575695,1761683446581,-1107.93,0.00022739,2]
[392575696,1761683446590,-892.44,0.00022739,2]
[392575697,1761683446599,-500.0,0.00022739,2]
[392575698,1761683446609,-500.0,0.00022739,2]
[392575699,1761683446618,-615.73,0.00022739,2]
[392575700,1761683446630,-741.32,0.00022739,2]
[392575701,1761683446640,-684.45,0.00022739,2]
[392575702,1761683446649,-500.0,0.00022739,2]
[392575703,1761683446659,-12082.6005836,0.00022893,2]
[392575704,1761683446668,-189.079052,0.00022893,2]
[392575705,1761683446677,-7685.32567851,0.00022913,2]
[392575706,1761683446687,-412.16323675,0.00022973,2]
[392575707,1761683446697,-163.97900139,0.00022973,2]
[392575708,1761683446707,-396.56327989,0.00022973,2]
[392575709,1761683446929,-500.0,0.00022973,2]
[392575710,1761683446938,-500.0,0.00022973,2]
[392575711,1761683446948,-500.0,0.00022973,2]
[392575712,1761683446958,-500.0,0.00022973,2]
[392575713,1761683446968,-501.63000146,0.00022973,2]
[392575714,1761683446978,-500.0,0.00022973,2]
[392575715,1761683446987,-500.0,0.00022973,2]
[392575716,1761683446997,-500.0,0.00022973,2]
[392575717,1761683447008,-500.0,0.00022973,2]
[392575718,1761683447017,-500.0,0.00022973,2]
[392575719,1761683447026,-500.0,0.00022973,2]
[392575720,1761683447035,-500.0,0.00022973,2]
[392575721,1761683447045,-500.0,0.00022973,2]
[392575722,1761683447055,-500.0,0.00022973,2]
[392575723,1761683447064,-500.0,0.00022973,2]
[392575724,1761683447073,-500.0,0.00022973,2]
[392575725,1761683447083,-800.0,0.00022997,2]
[392575726,1761683447092,-2362665.59412241,0.00023,2]
[392575727,1761683447323,-500.0,0.00022465,2]
[392575728,1761683447333,-1349.7698704,0.00023,2]
[392575729,1761683447774,-348.40496887,0.00021138,2]
[392575730,1761683447784,-500.0,0.00022739,2]
[392575731,1761683447794,-21270.58728399,0.00023,2]
[392575732,1761683447808,-24029.99999998,0.00023,2]
[392575733,1761683447843,-213873.88825872,0.00023,2]
[392575734,1761683447855,-7406.77507113,0.00023,2]
[392575735,1761683447866,-52412.03894314,0.00023,2]
[392575736,1761683447878,-332.781087,0.00023,2]
[392575737,1761683448033,9421.76314593,0.0001727,2]
[392575738,1761683448056,10000.01,0.0001727,2]
[392575739,1761683448077,10000.01,0.0001727,2]
[392575740,1761683448304,-306.15247098,0.00017228,2]
[392575741,1761683448316,-193.84752902,0.00017228,2]
[392575742,1761683448325,-500.0,0.00017228,2]
[392575743,1761683448334,-4374.03700022,0.0001727,2]
[392575744,1761683448344,-336204.17985385,0.0001727,2]
[392575745,1761683448353,-1295.82014615,0.00022181,10]
[392575746,1761683448382,-500.0,0.00017228,2]
[392575747,1761683448391,-1074.829132,0.00022181,10]
[392575748,1761683449080,-689.8864431,0.00022181,10]
[392575749,1761683449206,-500.0,0.00017228,2]
[392575750,1761683449215,-500.0,0.00017228,2]
[392575751,1761683449224,-500.0,0.00017228,2]
[392575752,1761683449234,-500.0,0.00017228,2]
[392575753,1761683449244,-500.0,0.00017228,2]
[392575754,1761683449254,-500.0,0.00017228,2]
[392575755,1761683449263,-34400.60427875,0.00022181,10]
[392575756,1761683449274,-348.40496887,0.0002297,2]
[392575757,1761683449283,-3269516.05425466,0.00023,2]
[392575758,1761683449292,-5335.97314547,0.00023,2]
[392575759,1761683449302,-10000.0,0.00023,2]
[392575760,1761683449311,-150.0,0.00023,5]
[392575761,1761683449321,-195.069729,0.00023,2]
[392575762,1761683449330,-250000.0,0.00023,3]
[392575763,1761683449339,-237.81171626,0.00023013,2]
[392575764,1761683449349,-500.0,0.00023013,2]
[392575765,1761683449357,-500.0,0.00023013,2]
[392575766,1761683449367,-500.0,0.00023013,2]
[392575767,1761683449376,-581.8996843,0.00023013,2]
[392575768,1761683449390,-500.0,0.00023013,2]
[392575769,1761683449399,-565.54,0.00023013,2]
[392575770,1761683449408,-500.0,0.00023013,2]
[392575771,1761683449417,-500.0,0.00023013,2]
[392575772,1761683449428,-439.02122205,0.00023013,2]
[392575773,1761683449437,-509.83,0.00023013,2]
[392575774,1761683449446,-500.0,0.00023013,2]
[392575775,1761683449455,-500.0,0.00023013,2]